fUST/lending_fUST_20250726
["ID","MTS","AMOUNT","RATE_DAILY","PERIOD"]
[375103224,1753528252903,-20.36901414,0.00023287,2]
[375103226,1753528253003,-460.0,0.00019178,2]
[375103227,1753528253014,-424.2059313,0.00019178,2]
[375103228,1753528253026,-35.7940687,0.00019178,2]
[375103229,1753528253035,-548.48957948,0.00019178,2]
[375103230,1753528253044,-422.92,0.00019442,3]
[375103231,1753528253053,-460.0,0.00019452,2]
[375103232,1753528253063,-366.08,0.00019726,2]
[375103233,1753528253072,-606.62826682,0.0001999,2]
[375103234,1753528253088,-16.87621876,0.0001999,2]
[375103235,1753528253098,-151.0,0.00020273,2]
[375103236,1753528253110,-151.0,0.00021918,2]
[375103237,1753528253129,-151.0,0.00021918,2]
[375103238,1753528253145,-151.0,0.00021918,2]
[375103239,1753528253155,-151.0,0.00021918,2]
[375103240,1753528253169,-151.0,0.00021918,2]
[375103241,1753528253178,-151.0,0.00021918,2]
[375103242,1753528253188,-151.0,0.00022,7]
[375103243,1753528253198,-151.0,0.00022465,7]
[375103244,1753528253207,-439.63098586,0.00023287,2]
[375103245,1753528253216,-571.75,0.00023287,2]
[375103246,1753528253226,-362.9388332,0.00023287,2]
[375103247,1753528253235,-575.52,0.00023287,2]
[375103248,1753528253246,-673.08,0.00023287,2]
[375103249,1753528253256,-567.38,0.00023287,2]
[375103250,1753528253266,-460.0,0.00023287,2]
[375103251,1753528253277,-1941.93,0.00023287,2]
[375103252,1753528253287,-1339.29,0.00023287,2]
[375103253,1753528253296,-4810.55,0.00023287,2]
[375103254,1753528253306,-617.2,0.00023287,2]
[375103255,1753528253316,-3234.29,0.00023287,2]
[375103256,1753528253325,-462.16,0.00023287,2]
[375103257,1753528253335,-1900.87,0.00023287,2]
[375103258,1753528253345,-531.71,0.00023287,2]
[375103259,1753528253355,-625.57,0.00023287,2]
[375103260,1753528253365,-486.5,0.00023287,2]
[375103261,1753528253375,-1024.9,0.00023287,2]
[375103262,1753528253384,-2570.81,0.00023287,2]
[375103263,1753528253394,-460.0,0.00023287,2]
[375103264,1753528253403,-510.11,0.00023287,2]
[375103265,1753528253414,-460.0,0.00023287,2]
[375103266,1753528253423,-460.0,0.00023287,2]
[375103267,1753528253433,-1125.06,0.00023287,2]
[375103268,1753528253443,-2103.8,0.00023287,2]
[375103269,1753528253453,-544.66728757,0.00023287,2]
[375103270,1753528253462,-460.0,0.00023287,2]
[375103271,1753528253472,-499.3,0.00023287,2]
[375103272,1753528253482,-1267.49,0.00023287,2]
[375103273,1753528253491,-6595.64,0.00023287,2]
[375103274,1753528253501,-2568.59,0.00023287,2]
[375103275,1753528253511,-460.0,0.00023287,2]
[375103276,1753528253521,-460.0,0.00023287,2]
[375103277,1753528253533,-1131.43,0.00023287,2]
[375103278,1753528253542,-460.0,0.00023287,2]
[375103279,1753528253553,-1441.14,0.00023287,2]
[375103280,1753528253563,-460.0,0.00023287,2]
[375103281,1753528253573,-460.0,0.00023287,2]
[375103282,1753528253583,-1629.26,0.00023287,2]
[375103283,1753528253593,-2084.21,0.00023287,2]
[375103284,1753528253602,-497.19,0.00023287,2]
[375103285,1753528253612,-460.0,0.00023287,2]
[375103286,1753528253621,-600.57,0.00023287,2]
[375103287,1753528253631,-807.52,0.00023287,2]
[375103288,1753528253641,-564.27,0.00023287,2]
[375103289,1753528253650,-1945.12,0.00023287,2]
[375103290,1753528253660,-460.0,0.00023287,2]
[375103291,1753528253669,-2077.27,0.00023287,2]
[375103292,1753528253678,-666.94,0.00023287,2]
[375103293,1753528253688,-460.0,0.00023287,2]
[375103294,1753528253697,-463.0,0.00023288,2]
[375103295,1753528253707,-568.0,0.00023288,2]
[375103296,1753528253717,-9066.65512436,0.000233,2]
[375103297,1753528253730,-2820.93982421,0.000233,2]
[375103298,1753528253741,-2065.09672622,0.000233,2]
[375103299,1753528253753,-7002.95273378,0.000233,2]
[375103300,1753528253764,-9476.53621479,0.000233,2]
[375103301,1753528253783,-151.0,0.000229,7]
[375103302,1753528253793,-356.01821542,0.000233,2]
[375103303,1753528254017,-460.0,0.00019178,2]
[375103304,1753528254027,-151.0,0.00021918,2]
[375103305,1753528254037,-217.847715,0.00021918,2]
[375103306,1753528254046,-4898.40116122,0.000233,2]
[375103307,1753528254057,-151.0,0.000233,7]
[375103308,1753528254066,-151.0,0.000233,7]
[375103309,1753528254077,-1043.705129,0.000233,7]
[375103310,1753528254087,-1043.705129,0.000233,7]
[375103311,1753528254096,-350.489918,0.000233,7]
[375103312,1753528254106,-350.489918,0.000233,7]
[375103313,1753528254117,-151.0,0.000233,7]
[375103314,1753528254128,-151.0,0.000233,7]
[375103315,1753528254138,-150.0,0.00023367,2]
[375103316,1753528254217,-852.91,0.00023386,7]
[375103317,1753528254227,-44298.66096965,0.000234,2]
[375103318,1753528254237,-4896.1272244,0.00023468,2]
[375103319,1753528254247,-852.91,0.00023486,7]
[375103320,1753528254257,-1289.9,0.000235,7]
[375103321,1753528254266,-460.0,0.00023561,2]
[375103322,1753528254276,-460.0,0.00023561,2]
[375103323,1753528254285,-564.42,0.00023561,2]
[375103324,1753528254295,-514.12,0.00023561,2]
[375103325,1753528254304,-602.89,0.00023561,2]
[375103326,1753528254313,-564.05283521,0.00023561,2]
[375103327,1753528254322,-460.0,0.00023561,2]
[375103328,1753528254331,-571.75,0.00023561,2]
[375103329,1753528254340,-575.52,0.00023561,2]
[375103330,1753528254350,-673.08,0.00023561,2]
[375103331,1753528254359,-567.38,0.00023561,2]
[375103332,1753528254369,-460.0,0.00023561,2]
[375103333,1753528254379,-1941.93,0.00023561,2]
[375103334,1753528254388,-1339.29,0.00023561,2]
[375103335,1753528254397,-4810.55,0.00023561,2]
[375103336,1753528254407,-617.2,0.00023561,2]
[375103337,1753528254417,-3234.29,0.00023561,2]
[375103338,1753528254426,-462.16,0.00023561,2]
[375103339,1753528254435,-1900.87,0.00023561,2]
[375103340,1753528254445,-531.71,0.00023561,2]
[375103341,1753528254454,-625.57,0.00023561,2]
[375103342,1753528254463,-486.5,0.00023561,2]
[375103343,1753528254472,-1024.9,0.00023561,2]
[375103344,1753528254482,-2570.81,0.00023561,2]
[375103345,1753528254491,-460.0,0.00023561,2]
[375103346,1753528254501,-510.11,0.00023561,2]
[375103347,1753528254510,-460.0,0.00023561,2]
[375103348,1753528254519,-460.0,0.00023561,2]
[375103349,1753528254529,-1125.06,0.00023561,2]
[375103350,1753528254538,-2103.8,0.00023561,2]
[375103351,1753528254547,-460.0,0.00023561,2]
[375103352,1753528254556,-499.3,0.00023561,2]
[375103353,1753528254565,-1267.49,0.00023561,2]
[375103354,1753528254575,-6595.64,0.00023561,2]
[375103355,1753528254584,-2568.59,0.00023561,2]
[375103356,1753528254594,-460.0,0.00023561,2]
[375103357,1753528254603,-460.0,0.00023561,2]
[375103358,1753528254613,-1131.43,0.00023561,2]
[375103359,1753528254622,-460.0,0.00023561,2]
[375103360,1753528254632,-1441.14,0.00023561,2]
[375103361,1753528254642,-460.0,0.00023561,2]
[375103362,1753528254651,-460.0,0.00023561,2]
[375103363,1753528254661,-1629.26,0.00023561,2]
[375103364,1753528254671,-2084.21,0.00023561,2]
[375103365,1753528254680,-497.19,0.00023561,2]
[375103366,1753528254689,-460.0,0.00023561,2]
[375103367,1753528254699,-600.57,0.00023561,2]
[375103368,1753528254708,-807.52,0.00023561,2]
[375103369,1753528254718,-564.27,0.00023561,2]
[375103370,1753528254728,-274.23525969,0.00023561,2]
[375103371,1753528254737,-1945.12,0.00023561,2]
[375103372,1753528254747,-340.87260423,0.00023561,2]
[375103373,1753528254756,-2077.27,0.00023561,2]
[375103374,1753528254766,-666.94,0.00023561,2]
[375103375,1753528254776,-460.0,0.00023561,2]
[375103376,1753528254785,-463.0,0.00023562,2]
[375103377,1753528254795,-568.0,0.00023562,2]
[375103378,1753528254805,-852.91,0.00023586,2]
[375103379,1753528254814,-760.0,0.00023588,2]
[375103380,1753528254823,-2394.52947061,0.00023621,2]
[375103381,1753528254832,-197.1,0.00023676,6]
[375103382,1753528254841,-321.79,0.00023686,2]
[375103383,1753528254851,-852.91,0.00023686,7]
[375103384,1753528254860,-852.91,0.00023786,2]
[375103385,1753528254870,-454.28546416,0.00023821,2]
[375103386,1753528254879,-460.0,0.00023835,2]
[375103387,1753528254889,-460.0,0.00023835,2]
[375103388,1753528254898,-564.42,0.00023835,2]
[375103389,1753528254908,-514.12,0.00023835,2]
[375103390,1753528254917,-602.89,0.00023835,2]
[375103391,1753528254926,-460.0,0.00023835,2]
[375103392,1753528254935,-571.75,0.00023835,2]
[375103393,1753528254946,-575.52,0.00023835,2]
[375103394,1753528254955,-673.08,0.00023835,2]
[375103395,1753528254964,-567.38,0.00023835,2]
[375103396,1753528254974,-460.0,0.00023835,2]
[375103397,1753528254983,-1941.93,0.00023835,2]
[375103398,1753528254992,-1339.29,0.00023835,2]
[375103399,1753528255001,-4810.55,0.00023835,2]
[375103400,1753528255011,-617.2,0.00023835,2]
[375103401,1753528255020,-2640.95536165,0.00023835,2]
[375103402,1753528255034,-593.33463835,0.00023835,2]
[375103403,1753528255043,-462.16,0.00023835,2]
[375103404,1753528255052,-1900.87,0.00023835,2]
[375103405,1753528255062,-531.71,0.00023835,2]
[375103406,1753528255071,-625.57,0.00023835,2]
[375103407,1753528255080,-486.5,0.00023835,2]
[375103408,1753528255089,-1024.9,0.00023835,2]
[375103409,1753528255099,-2570.81,0.00023835,2]
[375103410,1753528255108,-557.03295916,0.00023835,2]
[375103411,1753528255121,-510.11,0.00023835,2]
[375103412,1753528255130,-460.0,0.00023835,2]
[375103413,1753528255139,-460.0,0.00023835,2]
[375103414,1753528255149,-1125.06,0.00023835,2]
[375103415,1753528255159,-2103.8,0.00023835,2]
[375103416,1753528255169,-265.23227384,0.00023835,2]
[375103417,1753528255179,-499.3,0.00023835,2]
[375103418,1753528255189,-1267.49,0.00023835,2]
[375103419,1753528255200,-6595.64,0.00023835,2]
[375103420,1753528255209,-2568.59,0.00023835,2]
[375103421,1753528255219,-460.0,0.00023835,2]
[375103422,1753528255228,-473.921523,0.00023835,2]
[375103423,1753528255237,-789.93651867,0.00023835,2]
[375103457,1753528585574,178.093261,0.00013699,2]
[375103467,1753528913853,150.0,0.00020342,30]
[375103468,1753528914420,161.71,0.00022192,30]
[375103469,1753529067659,150.0,0.00020325,30]
[375103470,1753529070397,158.31,0.00022173,30]
[375103471,1753529155169,-356.18779848,0.00018245,2]
[375103476,1753529361093,-4866.73527441,0.00018245,2]
[375103493,1753529432073,-133.69255811,0.00018245,2]
[375103495,1753529432084,-302.27771109,0.0001905,2]
[375103497,1753529432096,-973.75284111,0.0001905,2]
[375103499,1753529432106,-220.53179275,0.00019088,2]
[375103502,1753529432116,-500.0,0.00019149,2]
[375103503,1753529432126,-605.25164421,0.00019149,2]
[375103506,1753529432135,-500.0,0.00019149,2]
[375103508,1753529432145,-500.0,0.00019149,2]
[375103512,1753529432154,-294.2662048,0.00019149,2]
[375103513,1753529432164,-486.82142718,0.00019149,2]
[375103515,1753529432174,-500.0,0.00019149,2]
[375103517,1753529432183,-500.0,0.00019149,2]
[375103519,1753529432195,-500.0,0.00019149,2]
[375103521,1753529432204,-351.88928518,0.00019149,2]
[375103523,1753529432214,-500.0,0.00019149,2]
[375103525,1753529432223,-500.0,0.00019149,2]
[375103527,1753529432233,-500.0,0.00019149,2]
[375103529,1753529432242,-500.0,0.00019149,2]
[375103531,1753529432251,-500.0,0.00019149,2]
[375103533,1753529432261,-498.48883624,0.00019149,2]
[375103535,1753529432270,-500.0,0.00019149,2]
[375103537,1753529432279,-500.0,0.00019149,2]
[375103539,1753529432288,-500.0,0.00019149,2]
[375103541,1753529432298,-500.0,0.00019149,2]
[375103543,1753529432307,-500.0,0.00019149,2]
[375103545,1753529432317,-500.0,0.00019149,2]
[375103546,1753529432326,-500.0,0.00019149,2]
[375103548,1753529432335,-500.0,0.00019149,2]
[375103550,1753529432345,-500.0,0.00019149,2]
[375103552,1753529432355,-597.34327008,0.00019149,2]
[375103554,1753529432365,-500.0,0.00019149,2]
[375103556,1753529432375,-500.0,0.00019149,2]
[375103558,1753529432386,-500.0,0.00019149,2]
[375103560,1753529432396,-500.0,0.00019149,2]
[375103562,1753529432405,-500.0,0.00019149,2]
[375103564,1753529432415,-500.0,0.00019149,2]
[375103566,1753529432425,-500.0,0.00019149,2]
[375103568,1753529432434,-500.0,0.00019149,2]
[375103570,1753529432444,-22634.38470914,0.00019149,2]
[375103572,1753529432454,-20622.69126763,0.0001915,2]
[375103574,1753529432464,-1200.0,0.00019162,2]
[375103576,1753529432474,-348.09,0.00019168,3]
[375103578,1753529432484,-154.9,0.00019168,3]
[375103580,1753529432494,-464.7,0.00019168,3]
[375103582,1753529432505,-502.01418913,0.00019173,2]
[375103584,1753529432518,-500.0,0.00019173,2]
[375103586,1753529432528,-500.0,0.00019173,2]
[375103588,1753529432538,-500.0,0.00019173,2]
[375103590,1753529432547,-581.92127721,0.00019173,2]
[375103592,1753529432557,-500.0,0.00019173,2]
[375103594,1753529432567,-223.55760895,0.00019173,2]
[375103596,1753529432577,-501.89189803,0.00019173,2]
[375103598,1753529432586,-500.0,0.00019173,2]
[375103600,1753529432597,-500.0,0.00019173,2]
[375103602,1753529432606,-500.0,0.00019173,2]
[375103604,1753529432616,-501.21243488,0.00019173,2]
[375103606,1753529432625,-502.16496801,0.00019173,2]
[375103608,1753529432634,-500.0,0.00019173,2]
[375103610,1753529432644,-192.69838952,0.00019177,2]
[375103612,1753529432653,-464.6525547,0.00019178,2]
[375103614,1753529432662,-474.24103969,0.00019178,2]
[375103616,1753529432671,-460.0,0.00019178,2]
[375103618,1753529432680,-460.0,0.00019178,2]
[375103620,1753529432689,-460.0,0.00019178,2]
[375103621,1753529432699,-460.0,0.00019178,2]
[375103623,1753529432708,-460.0,0.00019178,2]
[375103625,1753529432718,-460.0,0.00019178,2]
[375103627,1753529432727,-460.0,0.00019178,2]
[375103629,1753529432735,-461.07032851,0.00019178,2]
[375103631,1753529432745,-463.4151537,0.00019178,2]
[375103633,1753529432755,-460.0,0.00019178,2]
[375103635,1753529432767,-460.0,0.00019178,2]
[375103637,1753529432776,-461.47427707,0.00019178,2]
[375103639,1753529432787,-460.0,0.00019178,2]
[375103641,1753529432797,-460.0,0.00019178,2]
[375103643,1753529432806,-460.0,0.00019178,2]
[375103645,1753529432815,-460.0,0.00019178,2]
[375103648,1753529432835,-460.0,0.00019178,2]
[375103650,1753529432846,-460.0,0.00019178,2]
[375103652,1753529432856,-460.0,0.00019178,2]
[375103654,1753529432866,-397.15545866,0.00019178,2]
[375103656,1753529432875,-460.0,0.00019178,2]
[375103658,1753529432885,-460.0,0.00019178,2]
[375103660,1753529432895,-224.4126355,0.00019178,2]
[375103662,1753529432905,-460.0,0.00019178,2]
[375103664,1753529432915,-253.65759457,0.00019178,2]
[375103666,1753529432924,-460.0,0.00019178,2]
[375103668,1753529432934,-460.0,0.00019178,2]
[375103670,1753529432943,-460.0,0.00019178,2]
[375103672,1753529432953,-460.0,0.00019178,2]
[375103674,1753529432963,-460.0,0.00019178,2]
[375103676,1753529432972,-460.0,0.00019178,2]
[375103677,1753529432982,-460.0,0.00019178,2]
[375103678,1753529432992,-460.0,0.00019178,2]
[375103679,1753529433002,-460.0,0.00019178,2]
[375103680,1753529433011,-410.56461661,0.00019178,2]
[375103681,1753529433024,-460.0,0.00019178,2]
[375103682,1753529433035,-460.0,0.00019178,2]
[375103683,1753529433044,-460.0,0.00019178,2]
[375103684,1753529433055,-174.46970914,0.00019178,2]
[375103685,1753529433066,-460.0,0.00019178,2]
[375103686,1753529433076,-460.0,0.00019178,2]
[375103687,1753529433086,-460.0,0.00019178,2]
[375103688,1753529433097,-467.27767351,0.00019178,2]
[375103689,1753529433107,-460.0,0.00019178,2]
[375103690,1753529433117,-460.0,0.00019178,2]
[375103691,1753529433128,-460.0,0.00019178,2]
[375103692,1753529433138,-474.08849572,0.00019178,2]
[375103693,1753529433149,-460.0,0.00019178,2]
[375103694,1753529433159,-286.19943178,0.00019178,2]
[375103695,1753529433170,-472.45662599,0.00019178,2]
[375103696,1753529433180,-460.0,0.00019178,2]
[375103697,1753529433190,-460.0,0.00019178,2]
[375103698,1753529433202,-341.20887599,0.00019178,2]
[375103699,1753529433213,-460.0,0.00019178,2]
[375103700,1753529433222,-460.0,0.00019178,2]
[375103701,1753529433232,-460.0,0.00019178,2]
[375103702,1753529433242,-460.0,0.00019178,2]
[375103703,1753529433252,-460.0,0.00019178,2]
[375103704,1753529433262,-460.0,0.00019178,2]
[375103705,1753529433274,-460.0,0.00019178,2]
[375103706,1753529433284,-460.0,0.00019178,2]
[375103707,1753529433296,-460.0,0.00019178,2]
[375103708,1753529433307,-460.0,0.00019178,2]
[375103709,1753529433318,-460.0,0.00019178,2]
[375103710,1753529433328,-460.0,0.00019178,2]
[375103711,1753529433338,-461.68435102,0.00019178,2]
[375103712,1753529433349,-460.0,0.00019178,2]
[375103713,1753529433358,-460.0,0.00019178,2]
[375103714,1753529433369,-460.0,0.00019178,2]
[375103715,1753529433378,-460.0,0.00019178,2]
[375103716,1753529433388,-460.0,0.00019178,2]
[375103717,1753529433398,-460.0,0.00019178,2]
[375103718,1753529433407,-460.0,0.00019178,2]
[375103719,1753529433418,-460.0,0.00019178,2]
[375103720,1753529433429,-460.0,0.00019178,2]
[375103721,1753529433439,-460.0,0.00019178,2]
[375103722,1753529433449,-460.0,0.00019178,2]
[375103723,1753529433459,-460.0,0.00019178,2]
[375103724,1753529433469,-466.04393836,0.00019178,2]
[375103725,1753529433479,-460.0,0.00019178,2]
[375103726,1753529433489,-464.89243476,0.00019178,2]
[375103727,1753529433499,-422.85937636,0.00019178,2]
[375103728,1753529433509,-460.0,0.00019178,2]
[375103729,1753529433522,-421.12719224,0.00019178,2]
[375103730,1753529433539,-38.87280776,0.00019178,2]
[375103731,1753529433549,-460.0,0.00019178,2]
[375103732,1753529433558,-460.0,0.00019178,2]
[375103733,1753529433568,-460.0,0.00019178,2]
[375103734,1753529433578,-460.0,0.00019178,2]
[375103735,1753529433587,-463.79116499,0.00019178,2]
[375103736,1753529433597,-460.0,0.00019178,2]
[375103737,1753529433607,-460.0,0.00019178,2]
[375103738,1753529433617,-460.0,0.00019178,2]
[375103739,1753529433631,-460.0,0.00019178,2]
[375103740,1753529433641,-354.97455592,0.00019178,2]
[375103741,1753529433650,-460.0,0.00019178,2]
[375103742,1753529433660,-460.0,0.00019178,2]
[375103743,1753529433670,-460.0,0.00019178,2]
[375103744,1753529433680,-478.60210185,0.00019178,2]
[375103745,1753529433689,-460.0,0.00019178,2]
[375103746,1753529433699,-460.0,0.00019178,2]
[375103747,1753529433709,-460.0,0.00019178,2]
[375103748,1753529433720,-463.02392968,0.00019178,2]
[375103749,1753529433730,-460.0,0.00019178,2]
[375103750,1753529433739,-460.0,0.00019178,2]
[375103751,1753529433749,-460.0,0.00019178,2]
[375103752,1753529433759,-460.0,0.00019178,2]
[375103753,1753529433771,-234.51559974,0.00019178,2]
[375103754,1753529433781,-250.6523242,0.00019178,2]
[375103755,1753529433790,-460.0,0.00019178,2]
[375103756,1753529433800,-460.0,0.00019178,2]
[375103757,1753529433943,-460.0,0.00019178,2]
[375103758,1753529433953,-460.0,0.00019178,2]
[375103759,1753529433963,-460.0,0.00019178,2]
[375103760,1753529433973,-460.0,0.00019178,2]
[375103761,1753529433982,-460.0,0.00019178,2]
[375103762,1753529433992,-460.0,0.00019178,2]
[375103763,1753529434002,-202.03549895,0.00019178,2]
[375103764,1753529434012,-460.0,0.00019178,2]
[375103765,1753529434023,-460.0,0.00019178,2]
[375103766,1753529434033,-460.0,0.00019178,2]
[375103767,1753529434045,-462.67480493,0.00019178,2]
[375103768,1753529434055,-460.0,0.00019178,2]
[375103769,1753529434064,-460.0,0.00019178,2]
[375103770,1753529434074,-460.0,0.00019178,2]
[375103771,1753529434084,-313.9639571,0.00019178,2]
[375103772,1753529434094,-460.0,0.00019178,2]
[375103773,1753529434103,-460.0,0.00019178,2]
[375103774,1753529434113,-460.0,0.00019178,2]
[375103775,1753529434122,-460.0,0.00019178,2]
[375103776,1753529434132,-460.0,0.00019178,2]
[375103777,1753529434142,-460.0,0.00019178,2]
[375103778,1753529434152,-460.0,0.00019178,2]
[375103779,1753529434161,-463.25031618,0.00019178,2]
[375103780,1753529434171,-460.0,0.00019178,2]
[375103781,1753529434180,-460.0,0.00019178,2]
[375103782,1753529434190,-460.0,0.00019178,2]
[375103783,1753529434203,-460.0,0.00019178,2]
[375103784,1753529434213,-460.0,0.00019178,2]
[375103785,1753529434222,-460.0,0.00019178,2]
[375103786,1753529434232,-460.0,0.00019178,2]
[375103787,1753529434242,-460.0,0.00019178,2]
[375103788,1753529434251,-460.0,0.00019178,2]
[375103789,1753529434261,-460.0,0.00019178,2]
[375103790,1753529434272,-460.0,0.00019178,2]
[375103791,1753529434283,-1040.84,0.00019178,2]
[375103792,1753529434293,-920.08,0.00019178,2]
[375103793,1753529434303,-460.0,0.00019178,2]
[375103794,1753529434313,-460.0,0.00019178,2]
[375103795,1753529434322,-462.44222379,0.00019178,2]
[375103796,1753529434332,-460.0,0.00019178,2]
[375103797,1753529434342,-460.0,0.00019178,2]
[375103798,1753529434353,-1072.59,0.00019178,2]
[375103799,1753529434363,-460.0,0.00019178,2]
[375103800,1753529434373,-460.0,0.00019178,2]
[375103801,1753529434382,-460.0,0.00019178,2]
[375103802,1753529434392,-460.0,0.00019178,2]
[375103803,1753529434402,-465.76066162,0.00019178,2]
[375103804,1753529434411,-480.75812644,0.00019178,2]
[375103805,1753529434421,-460.0,0.00019178,2]
[375103806,1753529434431,-460.0,0.00019178,2]
[375103807,1753529434441,-460.0,0.00019178,2]
[375103808,1753529434451,-460.0,0.00019178,2]
[375103809,1753529434461,-460.0,0.00019178,2]
[375103810,1753529434471,-460.0,0.00019178,2]
[375103811,1753529434481,-1739.7,0.00019178,2]
[375103812,1753529434490,-460.0,0.00019178,2]
[375103813,1753529434501,-460.0,0.00019178,2]
[375103814,1753529434511,-460.0,0.00019178,2]
[375103815,1753529434522,-460.0,0.00019178,2]
[375103816,1753529434532,-460.0,0.00019178,2]
[375103817,1753529434541,-460.0,0.00019178,2]
[375103818,1753529434551,-460.0,0.00019178,2]
[375103819,1753529434560,-758.04,0.00019178,2]
[375103820,1753529434570,-460.0,0.00019178,2]
[375103821,1753529434579,-507.11,0.00019178,2]
[375103822,1753529434589,-460.0,0.00019178,2]
[375103823,1753529434598,-460.0,0.00019178,2]
[375103824,1753529434608,-460.0,0.00019178,2]
[375103825,1753529434618,-460.0,0.00019178,2]
[375103826,1753529434628,-460.0,0.00019178,2]
[375103827,1753529434639,-460.0,0.00019178,2]
[375103828,1753529434649,-460.0,0.00019178,2]
[375103829,1753529434659,-460.0,0.00019178,2]
[375103830,1753529434668,-460.0,0.00019178,2]
[375103831,1753529434678,-460.0,0.00019178,2]
[375103832,1753529434689,-460.0,0.00019178,2]
[375103833,1753529434699,-460.0,0.00019178,2]
[375103834,1753529434708,-782.97027005,0.00019178,2]
[375103859,1753529437948,-588.28972995,0.00019178,2]
[375103861,1753529437959,-460.0,0.00019178,2]
[375103863,1753529437968,-1276.4,0.00019178,2]
[375103864,1753529437978,-392.61842327,0.00019178,2]
[375103868,1753529438002,-67.38157673,0.00019178,2]
[375103870,1753529438011,-591.69,0.00019178,2]
[375103872,1753529438022,-460.0,0.00019178,2]
[375103874,1753529438035,-376.503239,0.00019178,2]
[375103876,1753529438045,-460.0,0.00019178,2]
[375103878,1753529438054,-460.0,0.00019178,2]
[375103880,1753529438064,-460.0,0.00019178,2]
[375103882,1753529438073,-252.33896492,0.00019178,2]
[375103885,1753529438096,-207.66103508,0.00019178,2]
[375103887,1753529438106,-460.0,0.00019178,2]
[375103888,1753529438115,-460.0,0.00019178,2]
[375103889,1753529438124,-460.0,0.00019178,2]
[375103890,1753529438134,-460.0,0.00019178,2]
[375103891,1753529438143,-460.0,0.00019178,2]
[375103892,1753529438152,-460.0,0.00019178,2]
[375103893,1753529438161,-48.83014749,0.00019178,2]
[375103894,1753529438175,-411.16985251,0.00019178,2]
[375103895,1753529438184,-460.0,0.00019178,2]
[375103896,1753529438193,-460.0,0.00019178,2]
[375103897,1753529438206,-500.0,0.00019178,2]
[375103898,1753529438216,-500.0,0.00019178,2]
[375103900,1753529438225,-460.0,0.00019178,2]
[375103902,1753529438234,-460.0,0.00019178,2]
[375103904,1753529438243,-500.0,0.00019178,2]
[375103906,1753529438252,-500.0,0.00019178,2]
[375103907,1753529438261,-460.0,0.00019178,2]
[375103909,1753529438271,-460.0,0.00019178,2]
[375103911,1753529438281,-460.0,0.00019178,2]
[375103913,1753529438291,-460.0,0.00019178,2]
[375103915,1753529438300,-1115.3,0.00019178,2]
[375103917,1753529438309,-460.0,0.00019178,2]
[375103919,1753529438319,-842.29,0.00019178,2]
[375103921,1753529438328,-460.0,0.00019178,2]
[375103923,1753529438337,-460.0,0.00019178,2]
[375103925,1753529438346,-460.0,0.00019178,2]
[375103927,1753529438355,-460.0,0.00019178,2]
[375103929,1753529438365,-460.0,0.00019178,2]
[375103931,1753529438374,-1177.67,0.00019178,2]
[375103933,1753529438383,-460.0,0.00019178,2]
[375103935,1753529438393,-460.0,0.00019178,2]